[Event "Frauenbundesliga 2024-25"]
[Site "Germany"]
[Date "2025.01.26"]
[Round "4.7"]
[White "Rogule, Laura"]
[Black "Antolak, Julia"]
[Result "1/2-1/2"]
[Annotator "TA"]
[ECO "A58"]
[WhiteElo "2219"]
[BlackElo "2300"]
[PlyCount "74"]
[EventDate "2024.11.06"]
[EventType "team-tourn"]
[EventCountry "GER"]
[SourceTitle "playchess.com"]
[Source "ChessBase"]
[SourceQuality "1"]
[TimeControl "40/5400+30:1800+30"]

{[%evp 10,74,45,46,48,40,23,-41,-34,-29,-35,-28,-43,-30,0,-91,-43,-42,-28,-23,-20,-18,-29,-16,-18,-20,-23,-29,-13,-15,86,62,62,35,26,0,42,26,115,84,409,417,444,448,444,33,28,48,37,16,37,47,42,56,51,27,29,0,0,0,34,0,0,0,58,0,0]} 1. d4 {[%emt 0:00:03]} Nf6 {[%emt 0:00:12]} 2. c4 {[%emt 0:00:25]} g6 {[%emt 0:00:07]} 3. g3 {[%emt 0:04:50]} c5 {[%emt 0:00:55]} 4. d5 {[%emt 0:00:33]} b5 {[%emt 0:00:10]} 5. cxb5 {[%emt 0:00:37]} a6 {[%emt 0:00:08]} 6. bxa6 {[%emt 0:01:16]} Bg7 {[%emt 0:00:25] A58: Benko/Volga Gambit: Lines with 5 bxa6.} 7. Nc3 {[%emt 0:06:49]} O-O {[%emt 0:01:32]} 8. d6 {[%emt 0:14:54]} (8. Bg2 $11) 8... Rxa6 $15 {[%emt 0:04:32] Black is slightly better.} (8... Bxa6 9. dxe7 Qxe7 10. Bg2 $14) 9. dxe7 {[%emt 0:03:25]} Qxe7 {[%emt 0:00:24]} 10. Bg2 {[%emt 0:01:46][%cal Bf1g2,Bg2d5,Bd5c4,Bc4d3,Bd3b5][%mdl 32] [#] Inhibits Bb7.} d5 $1 {[%emt 0:04:39]} 11. Bg5 $146 {[%emt 0:10:55]} (11. Nxd5 Nxd5 12. Qxd5 Rd8 13. Bg5 Bf6 14. Bxf6 Qxf6 15. Qb3 c4 16. Qc3 Qd6 17. a3 {0-1 Vagionakis,M (1732)-Ristic,N (2400) Heraklion op 21st 2017 (9)}) 11... Bb7 {[%emt 0:13:07]} 12. Bxf6 {[%emt 0:14:26]} (12. Nxd5 $11 {remains equal.} Bxd5 13. Bxd5) 12... Bxf6 {[%emt 0:06:49]} ({Better is} 12... Qxf6 $17 13. Bxd5 Rd8) 13. Nh3 {[%emt 0:06:30]} d4 {[%emt 0:07:04]} 14. Nd5 {[%emt 0:00:19]} Bxd5 {[%emt 0:01:53]} 15. Bxd5 {[%emt 0:00:08] White is weak on the dark squares} Rd6 {[%emt 0:00:27] Black sacrificed a pawn} 16. Bc4 {[%emt 0:12:34]} Nc6 {[%emt 0:06:14] ...Ne5 is the strong threat.} 17. O-O {[%emt 0:01:54]} Ne5 {[%emt 0:00:19]} 18. Qb3 {[%emt 0:03:30]} d3 {[%emt 0:08:19]} 19. Bxd3 {[%emt 0:05:10]} (19. exd3 Qa7 20. Rae1 Nf3+ (20... Rb8 21. Qa3 $19) 21. Kg2 Nxe1+ 22. Rxe1 Rb8 $17) 19... Qc7 {[%emt 0:04:04]} (19... Nxd3 $11 20. exd3 Qd7) 20. Bb5 $16 {[%emt 0:06:47]} Rd2 {[%emt 0:03:11][%cal Od2b2] Prevents Qc2.} 21. Rab1 {[%emt 0:00:21]} Rfd8 {[%emt 0:02:23]} 22. a4 {[%emt 0:02:13]} c4 {[%emt 0:04:33]} (22... Qc8 $5 23. Nf4 $8 g5 $11) 23. Qe3 {[%emt 0:00:23]} Qb7 {[%emt 0:01:53]} (23... Be7 $1 $11) 24. Nf4 {[%emt 0:01:53]} Rxe2 $2 {[%emt 0:02:28][%mdl 8192]} 25. Nxe2 $18 {[%emt 0:00:22]} Nf3+ {[%emt 0:00:04]} 26. Kh1 {[%emt 0:00:08]} Kg7 {[%emt 0:05:09]} 27. Rbd1 {[%emt 0:00:32] Prevents Rd3.} (27. Bxc4 Nd2+ 28. f3 Nxc4 $15) (27. Nc3 $18 Nd2+ 28. f3) 27... Ne1+ $14 {[%emt 0:02:13]} 28. f3 {[%emt 0:00:19]} Rxd1 {[%emt 0:00:26]} 29. Ng1 {[%emt 0:01:14]} (29. Nc3 {simplifies} Nc2 30. Qe2 Rxf1+ 31. Qxf1 Nd4 32. Bxc4 Qxb2 33. Nd5) 29... Nxf3 {[%emt 0:10:46]} 30. Rxd1 {[%emt 0:00:21]} Nh4+ {[%emt 0:03:07] [#]} 31. Nf3 $1 {[%emt 0:00:05]} Nxf3 {[%emt 0:00:02]} 32. Rd7 {[%emt 0:00:57]} (32. Bxc4 $2 Nd2+ (32... Bxb2 $2 33. Bd5 $18) 33. Kg1 Nxc4 $19) 32... Qa8 {[%emt 0:00:26] ( -> ...Nh4+)} 33. Ra7 {[%emt 0:00:34]} ({Reject} 33. Bxc4 Ne5+ 34. Bd5 Qxa4 $17) (33. Rd6 $5 Ne5+ 34. Kg1 $16) 33... Qd5 {[%emt 0:00:34]} 34. Rd7 {[%emt 0:00:09]} Qa8 {[%emt 0:00:23]} 35. Ra7 {[%emt 0:00:51]} (35. Bxc4 Ne5+ 36. Bd5 Qxa4 $17) (35. Rd6 $5 Ne5+ 36. Kg1 Nf3+ 37. Kh1 $14) 35... Qd5 {[%emt 0:00:03]} 36. Rd7 {[%emt 0:02:59]} Qa8 {( -> ...Ne1+)} 37. Ra7 (37. Bxc4 Ne5+ 38. Bd5 Qxa4 $17) ({White should play} 37. Rd6 $1 $14 Ne5+ 38. Kg1) 37... Qd5 {Weighted Error Value: White=0.35/Black=0.34  Loses game:     	---       	Black=1      Missed win:     	White=1     	---        Mistake:       	White=3     	Black=3      Inaccurate:     	White=3     	Black=2      OK:         	White=11    	Black=15     Best:        	White=5     	Black=2      Brilliant:      	White=1     	---} 1/2-1/2

[Event "Frauenbundesliga 2024-25"]
[Site "Germany"]
[Date "2025.01.26"]
[Round "4.8"]
[White "Wagner, Dinara"]
[Black "Sliwicka, Alicja"]
[Result "1/2-1/2"]
[Annotator "TA"]
[ECO "E04"]
[WhiteElo "2437"]
[BlackElo "2344"]
[PlyCount "71"]
[EventDate "2024.11.06"]
[EventType "team-tourn"]
[EventCountry "GER"]
[SourceTitle "playchess.com"]
[Source "ChessBase"]
[SourceQuality "1"]
[TimeControl "40/5400+30:1800+30"]

{[%evp 11,71,14,25,16,27,12,49,15,15,8,10,3,18,0,0,0,0,0,2,0,0,0,3,6,20,14,12,14,8,11,87,77,126,133,127,29,18,12,16,18,27,15,36,12,47,77,74,27,52,44,166,70,83,0,0,0,0,0,0,0,0,0]} 1. d4 {[%emt 0:00:05]} d5 {[%emt 0:00:22]} 2. c4 {[%emt 0:00:06]} e6 {[%emt 0:00:05]} 3. Nf3 {[%emt 0:00:04]} Nf6 {[%emt 0:00:05]} 4. g3 {[%emt 0:00:03]} dxc4 {[%emt 0:00:09]} 5. Bg2 {[%emt 0:00:04]} Bb4+ {[%emt 0:00:08]} 6. Bd2 {[%emt 0:00:18]} a5 {[%emt 0:00:07]} 7. a3 {[%emt 0:15:20] E04: Open Catalan: 5 Nf3.} Bxd2+ {[%emt 0:00:10]} 8. Qxd2 {[%emt 0:00:03]} Nc6 {[%emt 0:00:10]} 9. O-O {[%emt 0:07:58][%mdl 1024] White is slightly better. White has compensation.} O-O {[%emt 0:00:10]} 10. a4 {[%emt 0:04:41]} Qe7 $146 {[%emt 0:12:41]} (10... Ne4 11. Qc2 Nd6 12. Na3 Qf6 13. Qc3 Nb4 14. Nxc4 Nd5 15. Qd3 b6 16. Nfe5 Ba6 {0-1 Yellamraju,A (1712)-Nguyen,A (1637) Pan American-ch U14 Girls 2019 (7)}) 11. Qc3 {[%emt 0:17:53] White sacrificed a pawn} Nb4 {[%emt 0:07:12]} 12. Nbd2 {[%emt 0:07:50]} b6 {[%emt 0:03:20]} 13. Nxc4 {[%emt 0:00:35]} Bb7 {[%emt 0:02:34]} 14. Rfd1 {[%emt 0:08:16]} Rac8 {[%emt 0:01:22]} 15. Qa3 {[%emt 0:04:04]} Rfd8 {[%emt 0:03:01]} 16. Rac1 {[%emt 0:00:09]} Bd5 {[%emt 0:07:50]} 17. Nfe5 {[%emt 0:02:55]} Bxg2 {[%emt 0:00:55]} 18. Kxg2 {[%emt 0:00:21]} c5 {[%emt 0:07:23]} 19. dxc5 {[%emt 0:03:04]} Rxd1 {[%emt 0:06:11]} 20. Rxd1 {[%emt 0:00:03]} Qxc5 {[%emt 0:01:19]} (20... Rxc5 $11 21. Qf3 Rd5) 21. Qf3 $16 {[%emt 0:06:48]} Nbd5 {[%emt 0:11:07]} (21... Rf8 $142) 22. e4 {[%emt 0:01:51] White is more active.} Nb4 {[%emt 0:01:19]} 23. g4 {[%emt 0:01:44]} (23. b3 $16) 23... Nc6 $1 $11 {[%emt 0:04:05]} 24. Nxc6 {[%emt 0:09:29]} Qxc6 {[%emt 0:00:07]} 25. b3 {[%emt 0:04:12]} Qc5 {[%emt 0:05:28]} (25... Nxe4 $2 26. Ne5 Qa8 (26... Qb7 $2 27. Rd7 $18) 27. Qxf7+ Kh8 28. f3 $16 (28. Qxe6 Nc5+ 29. Qd5 Qxd5+ 30. Rxd5 h6 $16)) 26. Qf4 {[%emt 0:02:34]} h6 {[%emt 0:00:14]} 27. h4 {[%emt 0:00:46][%cal Bh2h4,Bh4g5][%mdl 32]} Rf8 {[%emt 0:11:00]} 28. g5 {[%emt 0:00:56]} hxg5 {[%emt 0:00:22]} 29. hxg5 {[%emt 0:00:01]} Nh5 {[%emt 0:01:33]} 30. Qe3 {[%emt 0:02:34] Strongly threatening Qxc5.} Rc8 {[%emt 0:02:25]} ({Black should try} 30... Qc7 $14) 31. Qxc5 {[%emt 0:00:38]} ({Don't do} 31. Nxb6 Qxe3 32. fxe3 Rc5 $16) ({White should play} 31. Rd6 $18) 31... Rxc5 $14 {[%emt 0:00:06] [#]} 32. Nxb6 {[%emt 0:00:27]} (32. Rd8+ $1 $16 Kh7 33. Rb8 (33. Nxb6 Rc3 $11)) 32... Rc3 $1 $11 {[%emt 0:01:59] The position is equal.} 33. Rb1 {[%emt 0:00:35][%cal Og5g6]} (33. Rd8+ Kh7 34. Ra8 Nf4+ 35. Kg1 Rxb3 $15) 33... Nf4+ {[%emt 0:00:16]} 34. Kh1 {[%emt 0:00:29]} Rh3+ {[%emt 0:06:26]} 35. Kg1 {[%emt 0:00:03]} Ne2+ {[%emt 0:01:19]} 36. Kg2 {[%emt 0:00:05] Weighted Error Value: White=0.18 (very precise) /Black=0.17 (very precise)   Mistake:       	White=3     	Black=3      Inaccurate:     	White=2     	Black=2      OK:         	White=11    	Black=12     Best:        	White=2     	---        Strong:       	---       	Black=2} 1/2-1/2

[Event "Frauenbundesliga 2024-25"]
[Site "Germany"]
[Date "2025.01.26"]
[Round "4.8"]
[White "Schleining, Zoya"]
[Black "Pipiras, Filipa Fortuna"]
[Result "1-0"]
[Annotator "TA"]
[ECO "B10"]
[WhiteElo "2323"]
[BlackElo "2178"]
[PlyCount "121"]
[EventDate "2024.11.06"]
[EventType "team-tourn"]
[EventCountry "GER"]
[SourceTitle "playchess.com"]
[Source "ChessBase"]
[SourceQuality "1"]
[TimeControl "40/5400+30:1800+30"]

{[%evp 9,121,6,21,12,30,27,29,36,31,23,33,39,65,59,69,49,63,66,85,89,97,58,56,52,58,54,62,51,57,54,58,62,58,57,61,55,61,50,48,47,48,48,41,51,73,69,78,61,58,64,70,62,65,62,78,58,58,58,58,58,114,93,160,150,242,235,239,229,301,252,256,197,201,212,284,268,318,292,256,253,369,381,303,378,392,371,382,324,343,250,327,308,1074,967,5081,4824,5518,12799,29971,29971,29981,29982,29988,29986,29986,29987,29987,29988,29992,29991,29992,29993,29993,29994]} 1. e4 {[%emt 0:00:03]} c6 {[%emt 0:00:37]} 2. Nf3 {[%emt 0:00:52]} d5 {[%emt 0:00:09]} 3. exd5 {[%emt 0:00:11]} cxd5 {[%emt 0:00:10]} 4. Ne5 {[%emt 0:00:02]} a6 {[%emt 0:02:48]} 5. d4 {[%emt 0:00:49]} Nc6 {[%emt 0:00:13]} 6. c3 {[%emt 0:01:23] B10: Caro-Kann: 2 d3 and 2 c4.} Nf6 {[%emt 0:05:24][%cal Bg8f6,Bf6e8,Be8c7][%mdl 32]} 7. Bd3 {[%emt 0:00:52]} g6 {[%emt 0:01:17] 7...g6 is better than 7...e6.} 8. Nd2 {[%emt 0:13:16] White has an edge.} Bg7 {[%emt 0:05:45]} 9. Ndf3 {[%emt 0:05:07]} O-O {[%emt 0:00:24]} 10. O-O {[%emt 0:02:28]} Ne8 $146 {[%emt 0:18:30]} (10... Bg4 11. Nxg4 Nxg4 12. h3 Nf6 13. Re1 Rc8 14. Bf4 Na5 15. Qe2 Re8 16. g3 Nc4 {1-0 Svane,F (2636)-Ozalp,B (2127) Titled Tuesday intern op 30th Jul Late blitz 2024 (2)}) 11. Re1 {[%emt 0:02:52]} Nxe5 {[%emt 0:05:00]} 12. dxe5 {[%emt 0:09:38]} Nc7 {[%emt 0:09:26] Black is weak on the dark squares} 13. Qa4 {[%emt 0:10:36]} Qd7 {[%emt 0:13:07]} 14. Qh4 {[%emt 0:04:41]} f6 {[%emt 0:01:58]} 15. Bh6 {[%emt 0:14:17] White is much more active.} Qg4 {[%emt 0:04:36]} 16. Qxg4 {[%emt 0:02:21]} (16. Bxg7 {feels hotter.} Qxh4 17. Bxf8 Qf4 18. Bxe7 Bg4 19. g3) 16... Bxg4 {[%emt 0:00:08]} 17. Bxg7 {[%emt 0:00:05]} Kxg7 {[%emt 0:00:07]} 18. exf6+ {[%emt 0:08:31]} exf6 {[%emt 0:00:11]} 19. Nd4 {[%emt 0:00:09]} Rfe8 {[%emt 0:04:14]} 20. f3 {[%emt 0:03:18]} Bd7 {[%emt 0:00:19]} 21. Kf2 {[%emt 0:00:11]} Rad8 {[%emt 0:03:48]} 22. Bc2 {[%emt 0:05:43]} Kf8 {[%emt 0:17:03]} 23. Bb3 {[%emt 0:02:58]} Re5 {[%emt 0:00:57]} 24. Rad1 {[%emt 0:06:34]} Rde8 {[%emt 0:00:29]} 25. Nc2 {[%emt 0:01:13]} Rxe1 {[%emt 0:01:39]} 26. Nxe1 {[%emt 0:01:05]} (26. Rxe1 Rxe1 27. Kxe1 Ke7 $16) 26... Be6 {[%emt 0:01:11]} 27. Nc2 {[%emt 0:00:11]} Rd8 {[%emt 0:00:54]} 28. Nd4 {[%emt 0:00:56]} Bf7 {[%emt 0:00:10]} 29. h4 {[%emt 0:00:48]} h5 {[%emt 0:00:52]} 30. Re1 {[%emt 0:00:20]} Re8 {[%emt 0:00:20]} 31. Rxe8+ {[%emt 0:00:31]} Kxe8 $14 {[%emt 0:00:29][%mdl 4096] Endgame KBN-KBN} 32. f4 {[%emt 0:01:40]} Ke7 {[%emt 0:00:43]} 33. Ke3 {[%emt 0:00:50]} Kd6 {[%emt 0:00:41]} 34. Bc2 {[%emt 0:00:09]} Na8 {[%emt 0:01:28] [#] Black is now going downhill.} (34... Be8 $14) 35. f5 $1 $16 {[%emt 0:01:02]} gxf5 {[%emt 0:01:43]} (35... g5 $142) 36. Kf4 {[%emt 0:00:11]} Nb6 {[%emt 0:00:19]} (36... Nc7 $16 {was worth a try.} 37. Nxf5+ (37. Bxf5 Ke7 $18) (37. Kxf5 Ke7 $16) 37... Kd7) 37. Nxf5+ $18 {[%emt 0:00:13]} (37. Bxf5 Na4 $16) (37. Kxf5 $6 Ke7 $16) 37... Kd7 {[%emt 0:00:59]} 38. b3 {[%emt 0:00:15]} Bg6 {[%emt 0:00:29]} 39. Bd1 {[%emt 0:00:23]} a5 {[%emt 0:00:37][%cal Ba6a5,Ba5a4][%mdl 32]} 40. Ng3 {[%emt 0:00:38]} d4 {[%emt 0:00:36] [#]} 41. c4 {[%emt 0:31:11] Against Nd5+} (41. cxd4 $6 Nd5+ 42. Kf3 Nc3 $16) 41... a4 {[%emt 0:05:10]} 42. Nxh5 {[%emt 0:00:00]} ({Don't take} 42. Bxh5 $6 Bb1 $16) 42... Ke7 {[%emt 0:06:50]} 43. Ng3 {[%emt 0:00:00]} (43. bxa4 Nxc4 44. Ng3 Nb2 $11) 43... Bb1 {[%emt 0:01:11]} 44. Nf5+ {[%emt 0:00:00]} ({Less strong is} 44. bxa4 Nxc4 45. h5 Kf8 $11) 44... Kf7 {[%emt 0:02:59]} (44... Kf8 $142 45. bxa4 (45. Nxd4 Bxa2 46. bxa4 Bxc4 $18) 45... Bxa2 46. Nxd4 Bxc4) 45. Nxd4 {[%emt 0:00:00]} Bxa2 {[%emt 0:00:09]} 46. bxa4 {[%emt 0:00:00][%cal Bb3a4,Ba4a5][%mdl 32]} Bxc4 {[%emt 0:00:29]} 47. Nf5 {[%emt 0:00:00]} Nd5+ {[%emt 0:12:09]} 48. Kf3 {[%emt 0:00:00]} Ke6 {[%emt 0:01:30] Prevents Nd6.} 49. Ne3 {[%emt 0:00:00]} Nxe3 {[%emt 0:00:46]} 50. Kxe3 {[%emt 0:00:00] KB-KB. White is a pawn up.} b5 $2 {[%emt 0:00:46]} (50... b6 51. g3 Kf5) 51. a5 {[%emt 0:00:00]} Kd6 {[%emt 0:03:06]} 52. Kd4 {[%emt 0:00:00]} Bf1 {[%emt 0:00:36]} 53. h5 {[%emt 0:00:00][%cal Bh4h5,Bh5h6][%mdl 32] h6 would kill now.} Ke7 {[%emt 0:00:26]} 54. g4 {[%emt 0:00:00][%cal Bg2g4,Bg4g5,Bg5g6,Bg6g7][%mdl 32] White mates.} f5 {[%emt 0:00:25][%cal Bf6f5,Bf5f4,Bf4f3][%mdl 32]} 55. g5 {[%emt 0:00:00]} b4 {[%emt 0:00:43]} 56. h6 {[%emt 0:00:00]} Kf7 {[%emt 0:00:14]} 57. Bh5+ {[%emt 0:00:00]} Kg8 {[%emt 0:00:07]} 58. g6 {[%emt 0:00:00]} f4 {[%emt 0:00:58]} 59. Bd1 {[%emt 0:00:00]} f3 {[%emt 0:00:59]} 60. Bb3+ {[%emt 0:00:00]} Kf8 {[%emt 0:00:16]} 61. g7+ {[%emt 0:00:00] Weighted Error Value: White=0.09 (flawless) /Black=0.52  Mistake:       	---       	Black=5      Inaccurate:     	White=1     	Black=5      OK:         	White=20    	Black=16     Best:        	White=1     	Black=1      Strong:       	White=1     	---} 1-0

[Event "Frauenbundesliga 2024-25"]
[Site "Germany"]
[Date "2025.01.26"]
[Round "4.8"]
[White "Unuk, Laura"]
[Black "Berzina, Ilze"]
[Result "0-1"]
[Annotator "TA"]
[ECO "D30"]
[WhiteElo "2312"]
[BlackElo "2192"]
[PlyCount "74"]
[EventDate "2024.11.06"]
[EventType "team-tourn"]
[EventCountry "GER"]
[SourceTitle "playchess.com"]
[Source "ChessBase"]
[SourceQuality "1"]
[TimeControl "40/5400+30:1800+30"]

{[%evp 9,73,26,43,22,17,14,31,23,27,21,66,26,30,-20,-14,-26,-21,-58,-47,-56,-61,-108,-79,-76,-47,-90,-94,-137,-141,-174,-181,-180,-104,-117,-102,-113,-108,-147,-112,-100,-102,-214,-204,-450,-193,-367,-357,-297,-68,-316,-252,-264,-245,-678,-685,-1131,-948,-5173,-1841,-5357,-2576,-2314,-2202,-29994,-29995,-29999]} 1. d4 {[%emt 0:00:08]} d5 {[%emt 0:00:09]} 2. c4 {[%emt 0:01:02]} e6 {[%emt 0:00:50]} 3. Nf3 {[%emt 0:03:40]} c6 {[%emt 0:00:26]} 4. e3 {[%emt 0:04:37]} Bd6 {[%emt 0:01:09]} 5. b3 {[%emt 0:05:28]} f5 {[%emt 0:01:31]} 6. Qc2 {[%emt 0:01:58] D30: Queen's Gambit Declined: Systems without Nc3.} Nf6 {[%emt 0:01:34]} 7. Bd3 {[%emt 0:03:05]} Ne4 {[%emt 0:05:01]} 8. Bb2 {[%emt 0:00:59] White is slightly better.} Nd7 {[%emt 0:03:02]} 9. Nc3 {[%emt 0:04:45]} Ndf6 {[%emt 0:01:35]} 10. c5 $146 {[%emt 0:18:46]} (10. O-O O-O 11. Ne5 Nxc3 12. Bxc3 Ne4 13. Bb2 Bd7 14. f3 Nf6 15. e4 dxe4 16. fxe4 fxe4 17. Bxe4 Nxe4 18. Qxe4 Bxe5 19. Qxe5 {1-0 Blanco Ronquillo,H (2442)-Filgueira,H (2283) Titled Tuesday intern op 30th Aug Early blitz 2022 (11)}) 10... Bc7 {[%emt 0:01:03]} 11. O-O-O {[%emt 0:00:08]} ({White should play} 11. O-O) 11... O-O $11 {[%emt 0:02:57]} 12. Kb1 {[%emt 0:11:18]} b6 {[%emt 0:06:55]} 13. Na4 {[%emt 0:00:44]} b5 {[%emt 0:04:12]} 14. Nc3 {[%emt 0:00:05]} a5 {[%emt 0:00:38]} 15. Qe2 {[%emt 0:07:02]} (15. a3 $15) 15... Nxc3+ {[%emt 0:09:42]} 16. Bxc3 {[%emt 0:00:05]} Ne4 {[%emt 0:00:19]} 17. Bb2 {[%emt 0:02:48]} b4 $1 {[%emt 0:00:40]} 18. Ne1 {[%emt 0:12:16] [#]} a4 $1 {[%emt 0:01:11] Black is much more active.} 19. f3 {[%emt 0:00:14] [#]} axb3 $1 {[%emt 0:00:49]} 20. fxe4 {[%emt 0:10:21]} fxe4 {[%emt 0:01:46] Black has strong rooks and is better} (20... bxa2+ $19 21. Ka1 fxe4 (21... dxe4 22. Bc4 $16)) 21. axb3 $17 {[%emt 0:00:05]} exd3 {[%emt 0:00:14]} 22. Nxd3 {[%emt 0:00:26]} Ba6 {[%emt 0:01:17][%cal Oe6e5]} 23. Qg4 {[%emt 0:01:13]} Bxd3+ {[%emt 0:13:42]} 24. Rxd3 {[%emt 0:00:08]} Qe7 {[%emt 0:00:40]} 25. g3 {[%emt 0:02:40]} (25. Rd2 $17) 25... Rf2 $19 {[%emt 0:01:38]} 26. e4 $2 {[%emt 0:01:05]} (26. Qd1) 26... Qf7 {[%emt 0:02:55]} (26... Bf4 $142 {[%cal Oe7a7] ( -> ...Qa7!)} 27. Qxf4 (27. gxf4 $2 Qa7 $19) 27... Rxf4 28. gxf4 Qh4 (28... dxe4 $2 29. Rg3 $19)) 27. Re1 $2 {[%emt 0:05:23]} (27. Re3 {was necessary.}) 27... h5 {[%emt 0:07:08]} (27... Rxh2 28. Rf3 Qd7 (28... Qg6 29. Qxg6 hxg6 30. exd5 $11) 29. exd5 Qxd5 30. Qxe6+ Qxe6 31. Rxe6 $16) 28. Qd1 {[%emt 0:02:59]} Qg6 $2 {[%emt 0:03:18]} ({Better is} 28... Rxh2 $19 29. Rf3 Qg6) 29. exd5 $2 {[%emt 0:00:35] Loses the game.} (29. Rd2 $15 Raf8 30. Qc2 Rxd2 31. Qxd2) 29... exd5 {[%emt 0:01:28]} 30. Re2 {[%emt 0:00:13]} Raf8 {[%emt 0:04:03]} ({Don't do} 30... Rf3 31. Red2 Rxd3 32. Rxd3 $17) 31. Qd2 $2 {[%emt 0:00:03]} (31. Qc2 Rxe2 32. Qxe2) 31... Rf1+ {[%emt 0:05:44]} 32. Kc2 {[%emt 0:00:02]} Bd8 {[%emt 0:01:43] Threatens to win with ...Bg5.} 33. Qxb4 {[%emt 0:01:27]} Bg5 {[%emt 0:03:46]} (33... R8f3 $142 34. Qd2 Ba5) 34. Qc3 {[%emt 0:00:39]} R8f2 {[%emt 0:01:56]} 35. Rxf2 {[%emt 0:00:56]} Rxf2+ {[%emt 0:00:06]} 36. Kd1 {[%emt 0:00:35]} Qe4 {[%emt 0:00:39][%csl Gf2][%cal Re4e2]} 37. Bc1 {[%emt 0:00:31]} Qe2# {[%emt 0:00:19] Weighted Error Value: White=1.20/Black=0.38  Loses game:     	White=1     	---        Missed win:     	---       	Black=1      Mistake:       	White=6     	Black=2      Inaccurate:     	White=6     	Black=2      OK:         	White=7     	Black=8      Best:        	White=2     	Black=2      Strong:       	---       	Black=3} 0-1

[Event "Frauenbundesliga 2024-25"]
[Site "Germany"]
[Date "2025.01.26"]
[Round "4.9"]
[White "Sieber, Fiona"]
[Black "Narva, Mai"]
[Result "1-0"]
[Annotator "TA"]
[ECO "B31"]
[WhiteElo "2263"]
[BlackElo "2398"]
[PlyCount "73"]
[EventDate "2024.11.06"]
[EventType "team-tourn"]
[EventCountry "GER"]
[SourceTitle "playchess.com"]
[Source "ChessBase"]
[SourceQuality "1"]
[TimeControl "40/5400+30:1800+30"]

{[%evp 16,73,22,26,29,27,28,13,27,35,31,37,39,23,25,6,22,27,28,18,33,37,62,58,72,63,79,84,100,56,89,65,75,66,93,105,116,102,105,102,112,92,208,200,206,211,200,215,213,193,199,155,393,388,651,641,2415,2069,29992,29993]} 1. e4 {[%emt 0:00:02]} c5 {[%emt 0:00:12]} 2. Nf3 {[%emt 0:00:06]} Nc6 {[%emt 0:00:10]} 3. Bb5 {[%emt 0:00:06]} g6 {[%emt 0:00:58]} 4. O-O {[%emt 0:00:48]} Bg7 {[%emt 0:00:14]} 5. Re1 {[%emt 0:00:35]} Nf6 {[%emt 0:01:08]} 6. Bxc6 {[%emt 0:02:11]} bxc6 {[%emt 0:04:44]} 7. e5 {[%emt 0:00:49]} Nd5 {[%emt 0:00:53]} 8. c4 {[%emt 0:00:18]} Nc7 {[%emt 0:00:54]} 9. Nc3 {[%emt 0:00:05]} Ne6 {[%emt 0:04:20] B31: Sicilian: 2...Nc6 3 Bb5 g6.} 10. d4 {[%emt 0:00:49]} cxd4 {[%emt 0:01:22]} 11. Nxd4 {[%emt 0:00:12]} Nxd4 {[%emt 0:00:52] The position is equal.} 12. Qxd4 {[%emt 0:00:05]} d6 {[%emt 0:01:24] Black is weak on the dark squares} 13. Bf4 {[%emt 0:06:15]} O-O {[%emt 0:01:33]} 14. Qe3 {[%emt 0:06:51]} Be6 {[%emt 0:03:34]} 15. c5 $146 {[%emt 0:13:24]} (15. b3 Qa5 16. h4 Rfd8 17. Rad1 Bf5 18. f3 dxe5 19. Bxe5 Rxd1 20. Nxd1 Bxe5 21. Qxe5 Qxa2 {½-½ Antipov,M (2599)-Sargsyan,A (2361) Pan American Intercollegiate-chT 2023 (3)}) 15... dxc5 {[%emt 0:12:20]} 16. Qxc5 {[%emt 0:06:11]} Qc7 {[%emt 0:00:28]} 17. Rac1 {[%emt 0:03:18]} Rfd8 {[%emt 0:04:43]} 18. b3 {[%emt 0:02:19]} Qb7 {[%emt 0:04:59]} 19. Na4 {[%emt 0:07:38]} Bd5 {[%emt 0:05:54]} 20. Qe3 {[%emt 0:00:34]} Qc8 {[%emt 0:02:18]} 21. h3 {[%emt 0:05:35]} h5 {[%emt 0:04:15]} 22. Bg5 {[%emt 0:03:18]} Re8 {[%emt 0:07:34]} 23. Qd3 {[%emt 0:05:52]} Kh7 {[%emt 0:01:32]} 24. Nc5 {[%emt 0:02:03]} Rb8 {[%emt 0:04:36] [#]} 25. e6 $1 {[%emt 0:06:51]} f6 {[%emt 0:03:54][%cal Bf7f6,Bf6f5][%mdl 32]} (25... fxe6 26. Bf4) 26. Bf4 {[%emt 0:02:25]} Rb4 {[%emt 0:00:46]} 27. Bd2 {[%emt 0:00:13]} Rb8 {[%emt 0:02:55]} 28. Re3 {[%emt 0:03:21][%cal Be1e3,Be3g3,Bg3a3,Ba3a7,Ba7a8][%mdl 32] White has more active pieces.} Rd8 {[%emt 0:04:02] [#]} (28... Rg8 $16 29. Rg3 f5) 29. Rg3 $1 $18 {[%emt 0:03:27]} f5 {[%emt 0:00:34][%cal Oh5h4]} 30. Qe3 $40 {[%emt 0:00:23][%mdl 128] White attacks with force.} Rd6 {[%emt 0:08:11][%cal Oh5h4]} 31. Qg5 {[%emt 0:07:20][%csl LRe7,LRg6]} Qe8 {[%emt 0:00:53]} 32. Re1 {[%emt 0:04:11]} Rb5 {[%emt 0:01:07]} 33. b4 {[%emt 0:01:07]} Bxa2 $2 {[%emt 0:03:50] A mistake that costs the game.} (33... Rxc5 $16 34. bxc5 Rxe6) 34. Ra3 {[%emt 0:01:34][%csl LRa2,LRa7][%cal Oa3a7]} Bc4 $2 {[%emt 0:02:19]} (34... Rd5 35. Rxa7 (35. Rxa2 a5 $18) 35... Rxd2 36. Qxd2 Bc4) 35. Rxa7 {[%emt 0:01:27][%cal Od2c3] and Bc3! would now be decisive} Bf8 {[%emt 0:00:29]} 36. Bc3 {[%emt 0:01:44] Intending Qf6 and mate. Prevents Rxc5.} Kg8 {[%emt 0:01:41] [#]} 37. Ra8 $3 {[%emt 0:00:55][%mdl 512] Weighted Error Value: White=0.21 (precise) /Black=0.71  Loses game:     	---       	Black=1      Mistake:       	---       	Black=2      Inaccurate:     	White=1     	Black=3      OK:         	White=11    	Black=6      Best:        	White=2     	Black=1      Strong:       	White=1     	---} 1-0